Cogmind - Beta 15 @@@ ROGUE MODE // 2025.05.17 @ 14:36:35 Player: CanadianCogs Result: Destroyed by TL-8SQ(R) with Subdweller Beam Cannon Performance ------------- Evolutions (0) 0 Regions Visited (2) 400 Robots Destroyed (3) 15 Value Destroyed (54) 54 Prototype IDs (0) 0 Alien Tech Used (0) 0 Bonus (0) 0 TOTAL SCORE: 469 Bonus ------- None Cogmind --------- Core Integrity 0/250 Matter 85/300 Energy 98/100 System Corruption 0% Temperature Cool (9) Movement Core (50) Location -10/Subcaves Parts ------- > --- POWER (1) -------- (None) > --- PROPULSION (2) --- (None) > --- UTILITY (2) ------ (None) > --- WEAPON (2) ------- (None) > --- INVENTORY (5) ---- Seismic Detector Peak State ------------ > --- POWER ------------ (None) > --- PROPULSION ------- Compact Wheel > --- UTILITY ---------- Small Storage Unit Makeshift Light Armor Plating > --- WEAPON ----------- Subdweller Laser Assault Rifle > --- INVENTORY -------- Seismic Detector [Rating: 9] Favorites ----------- Power Ion Engine Engine Ion Engine Propulsion Compact Wheel Wheel Compact Wheel Utility Small Storage Unit Device Seismic Detector Storage Small Storage Unit Protection Makeshift Light Armor Plating Weapon Assault Rifle Energy Gun Subdweller Laser Ballistic Gun Assault Rifle Build | -11 -10 -10 ------- Run | Yrd Mat Sub Slots Evolved . | . . . Power . | . . . Propulsion . | . . . Utility . | . . . Weapon . | . . . Parts Attached 9 | 7 . 2 Power 1 | 1 . . Engine 1 | 1 . . Core . | . . . Reactor . | . . . Propulsion 2 | 2 . . Treads . | . . . Leg . | . . . Wheel 2 | 2 . . Hover . | . . . Flight . | . . . Utility 3 | 2 . 1 Device 1 | 1 . . Storage 1 | 1 . . Processor . | . . . Hackware . | . . . Protection 1 | . . 1 Artifact . | . . . Weapon 3 | 2 . 1 Energy Gun 1 | . . 1 Energy Cannon . | . . . Ballistic Gun 2 | 2 . . Ballistic Cannon . | . . . Launcher . | . . . Special Weapon . | . . . Impact Weapon . | . . . Slashing Weapon . | . . . Piercing Weapon . | . . . Special Melee Weapon . | . . . Unidentified Prototypes . | . . . Parts Lost 6 | . . 6 Power 1 | . . 1 Propulsion 2 | . . 2 Utility 1 | . . 1 Weapon 2 | . . 2 Highest Loss Streak 4 | . . 4 To Critical Strikes . | . . . Average Backups 1 | . . 1 Power . | . . . Propulsion . | . . . Utility . | . . . Weapon . | . . . Tool/Special . | . . . Unused Backups . | . . . Power . | . . . Propulsion . | . . . Utility . | . . . Weapon . | . . . Tool/Special . | . . . Average Slot Usage (%) 80 | . 100 75 Engine 6 | . 14 4 Wheel 19 | . 28 17 Device 11 | . 14 10 Storage 13 | . 14 13 Protection 2 | . . 2 Energy Gun 2 | . . 2 Ballistic Gun 23 | . 28 22 Peak Build Rating 9 | 7 7 9 Average Rating 5 | 5 7 5 On Entrance 4 | . 7 7 Naked Turns 13 | . . 13 Heaviest Build 15 | 15 15 15 Greatest Support 32 | 32 32 32 Greatest Overweight (x) . | . . . Average Overweight (x) . | . . . Largest Inventory Capacity 8 | 8 8 8 Average Capacity 7 | 7 8 7 Most Carried 2 | . . 2 Average Carried 1 | . . 1 Final Capacity 8 | 8 8 5 Final Carried 1 | . . 1 Class Distribution -------------------- 100% | Mutant Dominant Class ---------------- Mutant | -10/Materials Mutant | -10/Subcaves Resources | -11 -10 -10 ----------- Run | Yrd Mat Sub Matter Collected 120 | 98 . 22 Remotely . | . . . Salvage Created 61 | 39 . 22 Parts 6 | 6 . . Haulers Intercepted . | . . . Recyclers Shooed . | . . . Parts Field Recycled . | . . . Retrieved Matter . | . . . Parts Self-Destructed . | . . . Prevented . | . . . Kills | -11 -10 -10 ------- Run | Yrd Mat Sub Combat Hostiles Destroyed 1 | . . 1 Guns 1 | . . 1 Classes Destroyed 2 | 1 . 1 Tunneler 2 | 2 . . Subdweller 1 | . . 1 Best Kill Streak 2 | 2 . 1 Combat Bots Only 1 | . . 1 Max Kills in Single Turn 1 | 1 . 1 Gunslinging . | . . . Exploded . | . . . Melee . | . . . Uniques/NPCs Destroyed . | . . . Combat | -11 -10 -10 -------- Run | Yrd Mat Sub Hostile Shots Fired 54 | . . 54 Missed 15 | . . 15 Hits 39 | . . 39 Projectile 39 | . . 39 AOE 7 | . . 7 Critical Strikes 1 | . . 1 Damage Taken 1122 | . . 1122 Core 274 | . . 274 Absorbed by Shields . | . . . Core Remaining (%) 100 | 100 . . Volleys Fired 16 | 7 . 9 Largest 2 | 2 . 2 Hottest 80 | 40 . 80 Shots Fired 31 | 14 . 17 Gun 31 | 14 . 17 Cannon . | . . . Launcher . | . . . Special . | . . . Kinetic 25 | 14 . 11 Thermal 6 | . . 6 Explosive . | . . . Electromagnetic . | . . . Robot Hit Streak 18 | 4 . 18 Robot Miss Streak 4 | 4 . 1 Penetration Max . | . . . Secondary Targets . | . . . Shots Hit Robots 20 | 5 . 15 Core Hits 4 | 2 . 2 Critical Kills . | . . . Critical Parts Destroyed . | . . . Critical Strikes 1 | . . 1 Destroy 1 | . . 1 Melee Attacks . | . . . Impact . | . . . Slashing . | . . . Piercing . | . . . Sneak Attacks . | . . . Combat Hostiles . | . . . Follow-up Attacks . | . . . Damage Inflicted 330 | 72 . 258 Guns 330 | 72 . 258 Cannons . | . . . Explosions . | . . . Melee . | . . . Ramming . | . . . Kinetic 208 | 72 . 136 Thermal 122 | . . 122 Explosive . | . . . Electromagnetic . | . . . Impact . | . . . Slashing . | . . . Piercing . | . . . Highest Corruption . | . . . Average Corruption . | . . . Corruption Purged . | . . . Corruption Blocked . | . . . Overload Shots . | . . . Overflow Damage . | . . . Projectiles . | . . . Explosions . | . . . Melee . | . . . Knockbacks . | . . . Impact . | . . . Kinetic . | . . . Secondary . | . . . Self-Inflicted Damage . | . . . Shots . | . . . Rammed . | . . . Targets Rammed . | . . . Kicked . | . . . Crushed . | . . . Highest Temperature 234 | . . 234 Average Temperature 74 | . . 74 Received Heat Transfer 456 | . . 456 Siege Activations . | . . . Martial Activations . | . . . Shielding Activations . | . . . Robots Disrupted . | . . . Combat Hostiles . | . . . Robots Corrupted . | . . . Combat Hostiles . | . . . Parts Fried . | . . . Impact Corruptions . | . . . Robots Melted . | . . . Combat Hostiles . | . . . Parts Melted . | . . . Heat Transferred 150 | . . 150 Parts Sabotaged . | . . . Parts Stolen . | . . . Parts Stripped . | . . . Power Chain Reactions . | . . . Alert | -11 -10 -10 ------- Run | Yrd Mat Sub Maximum Alert Level . | . . . Low Security (%) 100 | 100 100 . Level 1 . | . . . Level 2 . | . . . Level 3 . | . . . Level 4 . | . . . Level 5 . | . . . High Security . | . . . Max Security . | . . . Peak Influence 10 | 10 . . Initial . | . . . Average . | . . . Influence Increases 10 | 10 . . Destroy 0b10 Robot/NC 10 | 10 . . Influence Decreases 10 | 10 . . Time Decay 10 | 10 . . Squads Dispatched . | . . . Investigation . | . . . Extermination . | . . . Reinforcement . | . . . Assault . | . . . Garrison . | . . . Intercept . | . . . Searches Triggered . | . . . Construction Impeded . | . . . Haulers Reinforced . | . . . Active Scanning Responses . | . . . Cargo Convoy Interrupts . | . . . Stealth | -11 -10 -10 --------- Run | Yrd Mat Sub Distress Signals . | . . . Communications Jammed . | . . . Distress Signals . | . . . Times Spotted 8 | . . 8 Peak Tracking Total 7 | . . 7 Tactical Retreats . | . . . Traps | -11 -10 -10 ------- Run | Yrd Mat Sub Traps Triggered . | . . . Indirectly . | . . . Trap Hack Attempts . | . . . Triggered . | . . . Disarmed . | . . . Reprogrammed . | . . . Reused . | . . . Traps Extracted . | . . . Installed . | . . . Triggered . | . . . Machines | -11 -10 -10 ---------- Run | Yrd Mat Sub Machines Disabled . | . . . Max in Single Turn . | . . . Machines Repaired . | . . . Machines Dismantled . | . . . Machines Sabotaged . | . . . Overloaded Fab Kills . | . . . Hacking | -11 -10 -10 --------- Run | Yrd Mat Sub Machines Accessed . | . . . Terminals . | . . . Fabricators . | . . . Repair Stations . | . . . Recycling Units . | . . . Scanalyzers . | . . . Garrison Access . | . . . Total Hacks . | . . . Successful . | . . . Failed . | . . . Catastrophic . | . . . Database Lockouts . | . . . Manual . | . . . Terminals . | . . . Fabricators . | . . . Repair Stations . | . . . Recycling Units . | . . . Scanalyzers . | . . . Garrison Access . | . . . Terminal Hacks . | . . . Fabricator Hacks . | . . . Repair Station Hacks . | . . . Recycling Unit Hacks . | . . . Scanalyzer . | . . . Garrison Access Hacks . | . . . Unauthorized Hacks . | . . . Terminals . | . . . Fabricators . | . . . Repair Stations . | . . . Recycling Units . | . . . Scanalyzers . | . . . Garrison Access . | . . . Data Cores Recovered . | . . . Used . | . . . Hacking Detections . | . . . Full Trace Events . | . . . Feedback Events . | . . . Feedback Blocked . | . . . Robot Schematics Acquired . | . . . Robots Built . | . . . Authchips . | . . . Time . | . . . Total Robot Build Rating . | . . . Part Schematics Acquired . | . . . Parts Built . | . . . Authchips . | . . . Time . | . . . Total Part Build Rating . | . . . Parts Repaired . | . . . Time . | . . . Parts Recycled . | . . . Recycled Matter . | . . . Retrieved Matter . | . . . Retrieved Components . | . . . Parts Scanalyzed . | . . . Part Schematics Acquired . | . . . Parts Damaged . | . . . Bothacking | -11 -10 -10 ------------ Run | Yrd Mat Sub Used RIF Installer . | . . . Robots Hacked . | . . . Non-combat . | . . . Combat . | . . . Robot Hacks Applied . | . . . Relay Couplers Released . | . . . Fabnet Peak Effective % . | . . . Robots Rewired . | . . . Allies Hacked . | . . . Hacks Repelled . | . . . Allies | -11 -10 -10 -------- Run | Yrd Mat Sub Total Allies . | . . . Largest Group . | . . . Highest-Rated Group . | . . . Highest-Rated Ally . | . . . Total Orders . | . . . Ally Attacks . | . . . Total Damage . | . . . Kills . | . . . Allies Corrupted . | . . . Allies Melted . | . . . Intel | -11 -10 -10 ------- Run | Yrd Mat Sub Active Infowar (turns) 254 | 4 55 195 Seismic 254 | 4 55 195 Robot Analysis Total . | . . . Derelict Logs Recovered . | . . . Drone Launches . | . . . Drone Recoveries . | . . . Exploration | -11 -10 -10 ------------- Run | Yrd Mat Sub Turns Passed 374 | 64 55 255 Spaces Moved 264 | 34 19 211 Core 18 | 1 . 17 Treads . | . . . Legs . | . . . Wheels 246 | 33 19 194 Hover . | . . . Flight . | . . . Fastest Speed 50 | 50 100 50 Average Speed 96 | 98 100 95 Slowest Speed 100 | 100 100 100 Overloaded Moves . | . . . Propulsion Burnouts . | . . . Robots Hopped . | . . . Potential Cave-ins 1 | . . 1 Cave-ins Triggered . | . . . Exploration Rate (%) 7 | 3 4 15 Regions Visited 2 Branch Regions 1 Pre-discovered Areas . | . . . Known Exits Taken . | . . . Unknown Exits Taken 2 | 1 1 . Scrap Searched . | . . . Spaces Dug . | . . . Terrain Destroyed . | . . . Melee . | . . . Projectile . | . . . AOE . | . . . Terrain Rammed . | . . . Walls Destroyed . | . . . Machines Disabled . | . . . Actions | -11 -10 -10 --------- Run | Yrd Mat Sub Total 348 | 47 55 246 Wait 59 | . 37 22 Move 262 | 33 18 211 Hop . | . . . Pick Up 2 | . . 2 Fast Attach 7 | 7 . . Attach 1 | . . 1 Detach . | . . . Swap 1 | . . 1 Drop . | . . . Fire 16 | 7 . 9 Melee . | . . . Ram . | . . . Kick . | . . . Crush . | . . . Escape Stasis . | . . . Rewire . | . . . Trap . | . . . Miscellaneous . | . . . Route ------- -11/Scrapyard -10/Materials -10/Subcaves History --------- Turn | Location | Event 18 | -11/Scrapyard | Discovered new exit (range 15) 65 | -11/Scrapyard | Entered Materials 107 | -10/Materials | Discovered new exit (range 4) 120 | -10/Materials | Entered Subcaves 121 | -10/Subcaves | Shifting Twisted Machinery released Sub. Laser 121 | -10/Subcaves | Approached by a straggling Scientist 157 | -10/Subcaves | Shifting Twisted Machinery released Mak. Light Armor Plating 310 | -10/Subcaves | Build established: Mutant 349 | -10/Subcaves | Core integrity fell below 50% 360 | -10/Subcaves | Ambushed by Subdweller buried in earth 362 | -10/Subcaves | Released all parts (2) 372 | -10/Subcaves | Core integrity fell below 20% 375 | -10/Subcaves | Destroyed by TL-8SQ(R) with Subdweller Beam Cannon Last Messages --------------- Mak. Light Armor Plating falls loose from the Twisted Machinery. 00157_ ON-BI2(u) builds Twisted Machinery. 00161_ Acquired Mak. Light Armor Plating. Q9-ABP(c): "I think it's somewhere southeast of here" 00190_ Ion Engine destroyed. 00190_ Q9-ABP(c) destroyed. 00192_ Com. Wheel destroyed. 00193_ ON-BI2(u) builds Twisted Machinery. 00286_ JB-AUP(R) destroyed. 00289_ Acquired 22 matter. 00311_ Assault Rifle destroyed. 00324_ 55-0WY(R) suffers critical hit (Destroy). 00331_ Assault Rifle destroyed. 00360_ Mak. Light Armor Plating destroyed. 00361_ TL-8SQ(R): "ARGHSUB!" 00362_ Com. Wheel destroyed. 00362_ Critical hit (Meltdown: +270). 00362_ Released Sub. Laser. 00362_ Released Sml. Storage Unit. 00374_ Subatomizers dissect the Sub. Laser. Map ----- +----------------------------------------------------+ | ?????????????????????????????????????????????????? | | ?????????????????????????????????????????????????? | | ?????????????????????????????????????????????????? | | ?????????????????????????????????????????????????? | | ?????????????????????????????????????????????????? | | ?????????????????????????????????????????????????? | | ?????????????????????????????????????????????????? | | ?????????????????????????????????????????????????? | | ?????????????????????????????????????????????????? | | ?????????????????????????????????????????????????? | | ?????????????????????????????????????????????????? | | ?????????????????????????????????????????????????? | | ?????????????????????????????????????????????????? | | ?????????????????????????????????????????????????? | | ?????????????????????????????????????????????????? | | ?????????????????????????????????????????????????? | | ?????????????????????????????????????????????????? | | ????????????????????####?????????????????????????? | | ????????????????????#""#?????????????????????????? | | ????????????????????# "#????????????####?????????? | | ????????????????????# "##???????????# ??????????? | | ????????????#???????#" ##??????????# ??????????? | | ??????????? ????#" #######????# #????????### | | ??????????? ? ???## ## ##??# #???????## | | ?????????? #?## ### #### ##????### | | ?????????? ## #?##R @ #?## ####?# | | ?????????? ## ## ####"## ""### | | ?????????? ## #! "# ### | | ?????????# ### R [ "" #?## | | ?????????# #????# ##??## | | #???????? #?###?# " # ###### | | ######### #?# ## " " | | # ## # ### # " # | | "" ## # " " # | | " #?????# ###### # | | # # ###??????# #????# # | | ### ### #???????# ##????## | | ??###?# #???????# ###??##### | | ??##### #????#### ### ""????# | | ###"" ##?#### #?#####???# ## | | "# " #?# ##????????## ##? | | " ##?## #????????## ##?? | | " ##?"" #?????????## #??? | | ### """ #??????????## "#??? | | ## ##??????????#"" "#??? | | # ### ##???????????# " ! "#??? | | ## "#?## ## #???????????#"" "#??? | | ## ""#???###? ##???????????#" "#??? | | ### """#???????? #???????????#""" "#?? | | ## ####????????? ##???????????####""""#?? | +----------------------------------------------------+ Best States ------------- Heat Dissipation 25 Energy Generation 10 Energy Capacity 250 Matter Stores 100 Matter Capacity 300 Sight Range 16 Terrain Scan Density 10 Armor Coverage 100 Evasion (%) 40 Item Schematics ----------------- None Robot Schematics ------------------ None Fabricated ------------ Nothing Repaired ---------- Nothing Alien Tech Used ----------------- None Achievements -------------- None Challenges ------------ None Game ------ Seed MicroPortableExtractor Manual? 0 Play Time 00:07:16 Cumulative 67.2 hours Start 2025.05.17 @ 14:32:26 End 2025.05.17 @ 14:36:35 Sessions 1 Manual Loads 0 Difficulty Rogue Special Mode None Game No. 113 Rogue 113 Adventurer 0 Explorer 0 Win Type - Total 0 Types 0/0/0/0/0/0/0/0/0/0 Lore% 29 Gallery% 38 Achievement% 35 Wizard Run 0 Options --------- Layout 0 ASCII 0 Keyboard 0 Movement Mouse Keybinds 0 Fullscreen 2 Font 18/SmallcapsGlow Map View 38x25 Zoom Use 100% Tactical HUD 1 Map Filters NONE Filters NONE Steam 1 RUN: 0bb9f4ed-4e52-4f05-8ab2-89098e5f976d